Cogmind - Beta 11.1 @@@ ROGUE MODE // 2022.05.31 @ 17:27:41 Player: eldritch Result: Self-destructed Performance ------------- Evolutions (3) 1500 Regions Visited (10) 2000 Robots Destroyed (50) 250 Value Destroyed (983) 983 Prototype IDs (27) 540 Alien Tech Used (0) 0 Bonus (1500) 1500 TOTAL SCORE: 6773 Bonus ------- Entered Garrisons 200 Used RIF Installer 500 Entered DSFs 500 Aligned with FarCom 300 Cogmind --------- Core Integrity 583/700 Matter 208/300 Energy 280/280 System Corruption 0% Temperature Cool (0) Movement Walking (120) Location -7/Garrison Parts ------- > --- POWER (1) -------- Heavy Ion Engine > --- PROPULSION (4) --- Advanced Treads Carbon-fiber Leg Carbon-fiber Leg Improved Carbon-fiber Leg > --- UTILITY (5) ------ Large Storage Unit Visual Processing Unit Advanced Targeting Computer > --- WEAPON (3) ------- Improved Assault Rifle Minigun Gauss Rifle > --- INVENTORY (15) --- Improved Ion Engine Aluminum Leg Improved VTOL Module Improved Heat Sink High-capacity Matter Pod (200) Insulated Plating Hacking Suite PSU Rigger Improved Medium Laser Field Laser Improved Assault Rifle High-powered Shotgun Grenade Launcher Scythe Peak State ------------ > --- POWER ------------ Heavy Ion Engine > --- PROPULSION ------- Improved Treads Carbon-fiber Leg Improved Carbon-fiber Leg Improved Carbon-fiber Leg > --- UTILITY ---------- Cooling System Large Storage Unit Visual Processing Unit Advanced Targeting Computer High-powered Tractor Beam > --- WEAPON ----------- Improved Assault Rifle Minigun Gauss Rifle > --- INVENTORY -------- Improved Ion Engine Aluminum Leg Carbon-fiber Leg Improved VTOL Module Improved Heat Sink High-capacity Matter Pod Insulated Plating Hacking Suite PSU Rigger Improved Medium Laser Field Laser Improved Assault Rifle High-powered Shotgun Grenade Launcher Scythe [Rating: 40] Favorites ----------- Power Heavy Ion Engine Engine Heavy Ion Engine Propulsion Aluminum Leg Treads Improved Treads Leg Aluminum Leg Utility Visual Processing Unit Device Sensor Array Storage Medium Storage Unit Processor Visual Processing Unit Protection Hardened Light Armor Plating Weapon Improved Assault Rifle Energy Gun Improved Medium Laser Energy Cannon Advanced Beam Cannon Ballistic Gun Improved Assault Rifle Launcher Grenade Launcher Build | -11 -10 -10 -9 -9 -9 -8 -8 -7 -7 -7 ------- Run | Scr Mat Min Mat Min Exi Min Mat Fac DSF Gar Slots Evolved 6 | . . . 2 . . . 2 2 . . Power . | . . . . . . . . . . . Propulsion 2 | . . . 1 . . . . 1 . . Utility 3 | . . . 1 . . . 1 1 . . Weapon 1 | . . . . . . . 1 . . . Parts Attached 65 | . 13 6 14 5 1 . 20 2 4 . Power 4 | . 1 1 2 . . . . . . . Engine 4 | . 1 1 2 . . . . . . . Core . | . . . . . . . . . . . Reactor . | . . . . . . . . . . . Propulsion 16 | . 1 . 2 3 . . 5 1 4 . Treads 2 | . . . . . . . . 1 1 . Leg 14 | . 1 . 2 3 . . 5 . 3 . Wheel . | . . . . . . . . . . . Hover . | . . . . . . . . . . . Flight . | . . . . . . . . . . . Utility 17 | . 6 2 1 . 1 . 6 1 . . Device 6 | . . 1 . . . . 4 1 . . Storage 5 | . 3 1 . . 1 . . . . . Processor 2 | . . . 1 . . . 1 . . . Hackware . | . . . . . . . . . . . Protection 4 | . 3 . . . . . 1 . . . Artifact . | . . . . . . . . . . . Weapon 28 | . 5 3 9 2 . . 9 . . . Energy Gun 8 | . 2 2 2 1 . . 1 . . . Energy Cannon 2 | . . . 1 . . . 1 . . . Ballistic Gun 14 | . 2 1 5 . . . 6 . . . Ballistic Cannon . | . . . . . . . . . . . Launcher 4 | . 1 . 1 1 . . 1 . . . Special Weapon . | . . . . . . . . . . . Impact Weapon . | . . . . . . . . . . . Slashing Weapon . | . . . . . . . . . . . Piercing Weapon . | . . . . . . . . . . . Special Melee Weapon . | . . . . . . . . . . . Unidentified Prototypes 4 | . . . 4 . . . . . . . Parts Lost 9 | . 1 2 1 1 . . 1 . 3 . Power 1 | . 1 . . . . . . . . . Propulsion 2 | . . . 1 . . . . . 1 . Utility 4 | . . 1 . . . . 1 . 2 . Weapon 2 | . . 1 . 1 . . . . . . Highest Loss Streak 3 | . 1 2 1 1 . . 1 . 3 . To Critical Strikes . | . . . . . . . . . . . Average Slot Usage (%) 96 | . 92 87 98 100 100 100 99 100 98 84 Engine 10 | . 11 9 11 11 11 11 9 7 7 7 Leg 29 | . 28 28 32 33 33 33 27 23 23 23 Device 7 | . . 3 11 11 11 11 9 15 13 . Storage 11 | . 14 14 11 11 11 11 9 7 7 7 Processor 7 | . . . 11 11 11 11 9 15 15 15 Protection 4 | . 9 2 . . . . 7 . . . Energy Gun 9 | . 13 10 4 10 11 11 7 . . . Ballistic Gun 15 | . 14 13 16 11 11 11 19 23 23 23 Naked Turns . | . . . . . . . . . . . Heaviest Build 45 | 11 22 18 25 25 35 35 45 41 41 38 Greatest Support 51 | 20 20 20 30 35 35 35 45 40 51 48 Greatest Overweight (x) 1 | . 1 . . . . . 1 1 1 . Average Overweight (x) . | . . . . . . . . 1 . . Largest Inventory Capacity 25 | 8 25 10 10 10 15 15 15 15 15 15 Average Capacity 12 | 8 9 10 10 10 12 15 15 15 15 15 Most Carried 15 | 6 11 10 10 10 12 12 15 14 15 14 Average Carried 10 | 6 8 8 8 9 10 12 13 13 13 14 Final Capacity 15 | 8 10 10 10 10 15 15 15 15 15 15 Final Carried 15 | 6 10 7 10 10 12 12 15 13 14 14 Class Distribution -------------------- 38% | Scavenger-Mutant 34% | Scavenger-Skirmisher 27% | Mutant Dominant Class ---------------- Mutant | -10/Materials Mutant | -10/Mines Scavenger-Mutant | -9/Materials Scavenger-Mutant | -9/Mines Scavenger-Mutant | -9/Exiles Scavenger-Skirmisher | -8/Mines Scavenger-Skirmisher | -8/Materials Scavenger-Skirmisher | -7/Factory Scavenger-Skirmisher | -7/DSF Scavenger-Skirmisher | -7/Garrison Resources | -11 -10 -10 -9 -9 -9 -8 -8 -7 -7 -7 ----------- Run | Scr Mat Min Mat Min Exi Min Mat Fac DSF Gar Matter Collected 1226 | 176 53 153 224 169 10 11 375 . 55 . Remotely 149 | . . . . . . . 101 . 48 . Salvage Created 1610 | . 305 19 413 339 . 19 467 . 48 . Parts 99 | . 21 . 21 15 . 3 37 . 2 . Haulers Intercepted 6 | . 1 . 3 . . . 2 . . . Recyclers Shooed 3 | . . . 1 2 . . . . . . Parts Field Recycled . | . . . . . . . . . . . Retrieved Matter . | . . . . . . . . . . . Parts Self-Destructed . | . . . . . . . . . . . Prevented . | . . . . . . . . . . . Kills | -11 -10 -10 -9 -9 -9 -8 -8 -7 -7 -7 ------- Run | Scr Mat Min Mat Min Exi Min Mat Fac DSF Gar Combat Hostiles Destroyed 40 | . 4 8 7 6 . 1 13 . 1 . Guns 21 | . 2 1 3 3 . 1 10 . 1 . AOE 19 | . 2 7 4 3 . . 3 . . . Classes Destroyed 12 | . 5 2 3 . . . 1 . 1 . Builder 3 | . 1 . . 1 . . 1 . . . Tunneler 2 | . 2 . . . . . . . . . Hauler 6 | . 1 . 3 . . . 2 . . . Recycler 3 | . . . 1 2 . . . . . . Watcher 2 | . 1 . . . . . 1 . . . Swarmer 17 | . . . 4 4 . 1 8 . . . Grunt 10 | . 4 . 2 2 . . 2 . . . Sentry 2 | . . . 1 . . . 1 . . . Demolisher 1 | . . 1 . . . . . . . . Specialist 1 | . . . . . . . . . 1 . Hunter 2 | . . . . . . . 2 . . . Assembled 6 | . . 6 . . . . . . . . Best Kill Streak 7 | . 3 6 7 4 . 1 5 . 1 . Combat Bots Only 6 | . 1 6 6 3 . 1 4 . 1 . Max Kills in Single Turn 5 | . 2 5 2 2 . 1 2 . 1 . Gunslinging 1 | . . . . . . . 1 . . . Exploded 5 | . 1 5 2 2 . . 2 . . . Melee . | . . . . . . . . . . . Uniques/NPCs Destroyed 1 | . . 1 . . . . . . . . YI-UF0 (-10/Mines) Combat | -11 -10 -10 -9 -9 -9 -8 -8 -7 -7 -7 -------- Run | Scr Mat Min Mat Min Exi Min Mat Fac DSF Gar Damage Taken 2293 | . 202 453 117 138 . 45 515 . 823 . Core 347 | . . 151 40 20 . 9 10 . 117 . Absorbed by Shields . | . . . . . . . . . . . Core Remaining (%) 79 | 100 . 39 . . . 82 98 . . . Volleys Fired 118 | 4 16 19 23 19 . 4 26 . 7 . Largest 3 | 2 2 1 2 2 . 2 3 . 3 . Hottest 187 | 70 60 40 79 79 . 79 187 . 76 . Shots Fired 241 | 8 32 19 43 38 . 8 72 . 21 . Gun 229 | 8 32 16 41 36 . 8 67 . 21 . Cannon 2 | . . . . . . . 2 . . . Launcher 10 | . . 3 2 2 . . 3 . . . Special . | . . . . . . . . . . . Kinetic 159 | 4 16 11 33 19 . 4 51 . 21 . Thermal 45 | 4 . . 2 17 . 4 18 . . . Explosive 10 | . . 3 2 2 . . 3 . . . Electromagnetic 27 | . 16 5 6 . . . . . . . Robot Hit Streak 14 | 3 12 3 10 6 . 2 8 . 14 . Robot Miss Streak 4 | 2 2 3 2 4 . 1 4 . 3 . Penetration Max 1 | . . . . . . . 1 . . . Secondary Targets 4 | . . . . 1 . 1 2 . . . Max Gunslinging Chain 2 | . . . . 1 . 1 2 . . . Shots Hit Robots 148 | 4 25 10 31 14 . 5 43 . 16 . Core Hits 82 | 1 12 16 13 9 . 1 27 . 3 . Critical Kills . | . . . . . . . . . . . Critical Parts Destroyed 1 | . . . . . . . . . 1 . Critical Strikes 5 | . . . . . . 1 3 . 1 . Burn 4 | . . . . . . 1 3 . . . Destroy 1 | . . . . . . . . . 1 . Melee Attacks . | . . . . . . . . . . . Impact . | . . . . . . . . . . . Slashing . | . . . . . . . . . . . Piercing . | . . . . . . . . . . . Sneak Attacks . | . . . . . . . . . . . Combat Hostiles . | . . . . . . . . . . . Follow-up Attacks . | . . . . . . . . . . . Damage Inflicted 3645 | 34 570 530 706 401 . 103 1023 . 278 . Guns 2307 | 34 317 115 454 287 . 103 723 . 274 . Cannons 21 | . . . . . . . 21 . . . Explosions 1309 | . 253 415 252 114 . . 275 . . . Melee . | . . . . . . . . . . . Ramming 8 | . . . . . . . 4 . 4 . Kinetic 1622 | 21 109 72 364 147 . 52 583 . 274 . Thermal 702 | 13 253 68 16 140 . 51 161 . . . Explosive 988 | . . 347 252 114 . . 275 . . . Electromagnetic 325 | . 208 43 74 . . . . . . . Impact . | . . . . . . . . . . . Slashing . | . . . . . . . . . . . Piercing . | . . . . . . . . . . . Highest Corruption . | . . . . . . . . . . . Average Corruption . | . . . . . . . . . . . Corruption Purged . | . . . . . . . . . . . Corruption Blocked . | . . . . . . . . . . . Overload Shots . | . . . . . . . . . . . Overflow Damage 50 | . 4 8 14 8 . . 16 . . . Projectiles . | . . . . . . . . . . . Explosions 50 | . 4 8 14 8 . . 16 . . . Melee . | . . . . . . . . . . . Knockbacks . | . . . . . . . . . . . Impact . | . . . . . . . . . . . Kinetic . | . . . . . . . . . . . Secondary . | . . . . . . . . . . . Self-Inflicted Damage 118 | . 118 . . . . . . . . . Shots 3 | . 3 . . . . . . . . . Rammed 1 | . . . . . . . . . 1 . Targets Rammed 2 | . . . . . . . 1 . 1 . Kicked 1 | . . . . . . . 1 . . . Crushed . | . . . . . . . . . . . Highest Temperature 168 | 80 72 . 37 144 . 48 168 . . . Average Temperature 41 | 48 20 . 16 56 . 24 59 . . . Received Heat Transfer 165 | . 51 . 33 . . . 81 . . . Siege Activations . | . . . . . . . . . . . Robots Corrupted . | . . . . . . . . . . . Combat Hostiles . | . . . . . . . . . . . Parts Fried . | . . . . . . . . . . . Impact Corruptions . | . . . . . . . . . . . Robots Melted . | . . . . . . . . . . . Combat Hostiles . | . . . . . . . . . . . Parts Melted 1 | . . . . 1 . . . . . . Heat Transferred 1260 | 37 150 . 37 296 . 185 555 . . . Parts Sabotaged . | . . . . . . . . . . . Parts Stolen . | . . . . . . . . . . . Parts Stripped . | . . . . . . . . . . . Power Chain Reactions 4 | . 3 1 . . . . . . . . Missiles Intercepted . | . . . . . . . . . . . Alert | -11 -10 -10 -9 -9 -9 -8 -8 -7 -7 -7 ------- Run | Scr Mat Min Mat Min Exi Min Mat Fac DSF Gar Peak Influence 345 | . 144 123 284 190 . 35 345 137 138 88 Initial 123 | . . 48 47 40 . . 13 123 98 88 Average 109 | . 62 114 167 148 . 28 99 127 115 88 Maximum Alert Level 1 | . . . 1 . . . 1 . . . Low Security (%) 83 | 100 100 100 36 100 . 100 78 100 100 100 Level 1 16 | . . . 63 . . . 21 . . . Level 2 . | . . . . . . . . . . . Level 3 . | . . . . . . . . . . . Level 4 . | . . . . . . . . . . . Level 5 . | . . . . . . . . . . . High Security . | . . . . . . . . . . . Max Security . | . . . . . . . . . . . Squads Dispatched 5 | . 1 . . . . . 3 . 1 . Investigation 1 | . . . . . . . 1 . . . Extermination . | . . . . . . . . . . . Reinforcement 4 | . 1 . . . . . 2 . 1 . Assault . | . . . . . . . . . . . Garrison . | . . . . . . . . . . . Intercept . | . . . . . . . . . . . Searches Triggered . | . . . . . . . . . . . Construction Impeded 1 | . . . . . . . 1 . . . Haulers Reinforced . | . . . . . . . . . . . Active Scanning Responses . | . . . . . . . . . . . Cargo Convoy Interrupts . | . . . . . . . . . . . Stealth | -11 -10 -10 -9 -9 -9 -8 -8 -7 -7 -7 --------- Run | Scr Mat Min Mat Min Exi Min Mat Fac DSF Gar Distress Signals 4 | . . . 2 . . . 2 . . . Communications Jammed . | . . . . . . . . . . . Distress Signals . | . . . . . . . . . . . Times Spotted 89 | . 14 26 13 6 . 4 22 . 4 . Peak Tracking Total 9 | . 3 9 6 4 . 4 8 . 3 . Tactical Retreats 8 | . 3 1 1 . . 1 1 . 1 . Traps | -11 -10 -10 -9 -9 -9 -8 -8 -7 -7 -7 ------- Run | Scr Mat Min Mat Min Exi Min Mat Fac DSF Gar Traps Triggered 2 | . 1 . 1 . . . . . . . Indirectly . | . . . . . . . . . . . Trap Hack Attempts . | . . . . . . . . . . . Triggered . | . . . . . . . . . . . Disarmed . | . . . . . . . . . . . Reprogrammed . | . . . . . . . . . . . Reused . | . . . . . . . . . . . Traps Extracted . | . . . . . . . . . . . Installed . | . . . . . . . . . . . Triggered . | . . . . . . . . . . . Machines | -11 -10 -10 -9 -9 -9 -8 -8 -7 -7 -7 ---------- Run | Scr Mat Min Mat Min Exi Min Mat Fac DSF Gar Machines Disabled 1 | . 1 . . . . . . . . . Max in Single Turn 1 | . 1 . . . . . . . . . Machines Sabotaged . | . . . . . . . . . . . Garrisons Compromised . | . . . . . . . . . . . Overloaded Fab Kills . | . . . . . . . . . . . Hacking | -11 -10 -10 -9 -9 -9 -8 -8 -7 -7 -7 --------- Run | Scr Mat Min Mat Min Exi Min Mat Fac DSF Gar Machines Accessed 11 | . 2 . 2 . 2 . 3 2 . . Terminals 5 | . 1 . 2 . . . . 2 . . Fabricators . | . . . . . . . . . . . Repair Stations 1 | . . . . . . . 1 . . . Recycling Units 3 | . 1 . . . . . 2 . . . Scanalyzers . | . . . . . . . . . . . Garrison Access . | . . . . . . . . . . . Total Hacks 31 | . 8 . 8 . 3 . 7 5 . . Successful 22 | . 5 . 7 . 3 . 5 2 . . Failed 9 | . 3 . 1 . . . 2 3 . . Catastrophic 1 | . 1 . . . . . . . . . Database Lockouts . | . . . . . . . . . . . Manual 10 | . 2 . 6 . 1 . . 1 . . Terminals 15 | . 2 . 8 . . . . 5 . . Fabricators . | . . . . . . . . . . . Repair Stations 2 | . . . . . . . 2 . . . Recycling Units 11 | . 6 . . . . . 5 . . . Scanalyzers . | . . . . . . . . . . . Garrison Access . | . . . . . . . . . . . Terminal Hacks 10 | . . . 6 . 3 . . 1 . . Record 2 | . . . . . 2 . . . . . Robot Analysis 3 | . . . 3 . . . . . . . Open DSF 1 | . . . . . . . . 1 . . Terminal Index 1 | . . . 1 . . . . . . . Unreport Threat 1 | . . . 1 . . . . . . . Hauler Manifests 1 | . . . 1 . . . . . . . EX-Prototype ID Bank 1 | . . . . . 1 . . . . . Fabricator Hacks . | . . . . . . . . . . . Repair Station Hacks 1 | . . . . . . . 1 . . . Scan Component 1 | . . . . . . . 1 . . . Recycling Unit Hacks 8 | . 4 . . . . . 4 . . . Process 1 | . 1 . . . . . . . . . Report Inventory 3 | . 1 . . . . . 2 . . . Retrieve Matter 1 | . 1 . . . . . . . . . Retrieve Components 3 | . 1 . . . . . 2 . . . Scanalyzer . | . . . . . . . . . . . Garrison Access Hacks . | . . . . . . . . . . . Unauthorized Hacks 3 | . 1 . 1 . . . . 1 . . Terminals 3 | . 1 . 1 . . . . 1 . . Botnet 3 | . 1 . 1 . . . . 1 . . Fabricators . | . . . . . . . . . . . Repair Stations . | . . . . . . . . . . . Recycling Units . | . . . . . . . . . . . Scanalyzers . | . . . . . . . . . . . Garrison Access . | . . . . . . . . . . . Data Cores Recovered . | . . . . . . . . . . . Used . | . . . . . . . . . . . Hacking Detections 8 | . 1 . 2 . . . 3 2 . . Full Trace Events 1 | . . . . . . . 1 . . . Feedback Events . | . . . . . . . . . . . Feedback Blocked . | . . . . . . . . . . . Robot Schematics Acquired . | . . . . . . . . . . . Robots Built . | . . . . . . . . . . . Authchips . | . . . . . . . . . . . Time . | . . . . . . . . . . . Total Robot Build Rating . | . . . . . . . . . . . Part Schematics Acquired . | . . . . . . . . . . . Parts Built . | . . . . . . . . . . . Authchips . | . . . . . . . . . . . Time . | . . . . . . . . . . . Total Part Build Rating . | . . . . . . . . . . . Parts Repaired . | . . . . . . . . . . . Time . | . . . . . . . . . . . Parts Recycled . | . . . . . . . . . . . Recycled Matter 190 | . 190 . . . . . . . . . Retrieved Matter 190 | . 190 . . . . . . . . . Retrieved Components 11 | . . . . . . . 11 . . . Parts Scanalyzed . | . . . . . . . . . . . Part Schematics Acquired . | . . . . . . . . . . . Parts Damaged . | . . . . . . . . . . . Bothacking | -11 -10 -10 -9 -9 -9 -8 -8 -7 -7 -7 ------------ Run | Scr Mat Min Mat Min Exi Min Mat Fac DSF Gar Used RIF Installer 1 | . . . . . . . . . . 1 Robots Hacked . | . . . . . . . . . . . Non-combat . | . . . . . . . . . . . Combat . | . . . . . . . . . . . Robot Hacks Applied . | . . . . . . . . . . . Relay Couplers Released . | . . . . . . . . . . . Fabnet Peak Effective % . | . . . . . . . . . . . Robots Rewired . | . . . . . . . . . . . Allies Hacked . | . . . . . . . . . . . Hacks Repelled . | . . . . . . . . . . . Allies | -11 -10 -10 -9 -9 -9 -8 -8 -7 -7 -7 -------- Run | Scr Mat Min Mat Min Exi Min Mat Fac DSF Gar Total Allies 2 | . . . . 2 . . . . . . Largest Group 2 | . . . . 2 . . . . . . Highest-Rated Group 48 | . . . . 48 . . . . . . Highest-Rated Ally 31 | . . . . 31 . . . . . . Total Orders . | . . . . . . . . . . . Ally Attacks 7 | . . . . 7 . . . . . . Total Damage 41 | . . . . 41 . . . . . . Kills . | . . . . . . . . . . . Allies Corrupted . | . . . . . . . . . . . Allies Melted . | . . . . . . . . . . . Intel | -11 -10 -10 -9 -9 -9 -8 -8 -7 -7 -7 ------- Run | Scr Mat Min Mat Min Exi Min Mat Fac DSF Gar Robot Analysis Total 3 | . . . 3 . . . . . . . Derelict Logs Recovered 2 | . . 1 . 1 . . . . . . Drone Launches . | . . . . . . . . . . . Drone Recoveries . | . . . . . . . . . . . Exploration | -11 -10 -10 -9 -9 -9 -8 -8 -7 -7 -7 ------------- Run | Scr Mat Min Mat Min Exi Min Mat Fac DSF Gar Turns Passed 3232 | 15 539 338 417 360 446 51 937 20 81 28 Spaces Moved 1863 | 4 328 239 236 244 369 27 348 10 35 23 Core . | . . . . . . . . . . . Treads 3 | . . . . . . . . . 3 . Legs 1860 | 4 328 239 236 244 369 27 348 10 32 23 Wheels . | . . . . . . . . . . . Hover . | . . . . . . . . . . . Flight . | . . . . . . . . . . . Fastest Speed 120 | 120 120 120 120 120 120 120 120 190 120 120 Average Speed 134 | 120 133 120 120 120 120 120 179 190 149 120 Slowest Speed 225 | 120 190 120 120 120 120 120 190 190 225 120 Overloaded Moves . | . . . . . . . . . . . Propulsion Burnouts . | . . . . . . . . . . . Robots Hopped . | . . . . . . . . . . . Cave-ins Triggered . | . . . . . . . . . . . Exploration Rate (%) 34 | 2 63 60 23 64 72 8 29 1 46 7 Regions Visited 10 Branch Regions 4 Pre-discovered Areas 2 | . . 1 . 1 . . . . . . Known Exits Taken 1 | . . . . . . . . 1 . . Unknown Exits Taken 8 | 1 1 1 1 1 1 1 1 . . . Scrap Searched 3 | . . 2 . 1 . . . . . . Spaces Dug 6 | . . . . 6 . . . . . . Terrain Destroyed 88 | . 11 25 16 17 . . 19 . . . Melee . | . . . . . . . . . . . Projectile . | . . . . . . . . . . . AOE 88 | . 11 25 16 17 . . 19 . . . Terrain Rammed . | . . . . . . . . . . . Walls Destroyed . | . . . . . . . . . . . Machines Disabled . | . . . . . . . . . . . Actions | -11 -10 -10 -9 -9 -9 -8 -8 -7 -7 -7 --------- Run | Scr Mat Min Mat Min Exi Min Mat Fac DSF Gar Total 2384 | 7 405 270 329 276 372 37 607 11 47 23 Wait 259 | . 19 6 42 1 . 7 184 . . . Move 1853 | 3 327 238 235 243 368 26 347 9 34 23 Hop . | . . . . . . . . . . . Pick Up 41 | . 14 . 9 3 2 . 13 . . . Fast Attach 16 | . 7 1 5 . . . 3 . . . Attach 13 | . . 3 4 1 . . 2 2 1 . Detach . | . . . . . . . . . . . Swap 36 | . 6 2 5 4 1 . 15 . 3 . Drop 46 | . 16 1 6 5 1 . 16 . 1 . Fire 118 | 4 16 19 23 19 . 4 26 . 7 . Melee . | . . . . . . . . . . . Ram . | . . . . . . . . . . . Kick 1 | . . . . . . . 1 . . . Crush 1 | . . . . . . . . . 1 . Escape Stasis . | . . . . . . . . . . . Rewire . | . . . . . . . . . . . Trap . | . . . . . . . . . . . Miscellaneous . | . . . . . . . . . . . Route ------- -11/Scrapyard -10/Materials (discovered 3 exits: *Mat x2 / [*Min]) -10/Mines -9/Materials -9/Mines (discovered 2 exits: *Mat / *Exi) -9/Exiles (discovered 2 exits: [*Min x2]) -8/Mines -8/Materials -7/Factory -7/DSF -7/Garrison History --------- Turn | Location | Event 1 | -11/Scrapyard | Discovered new exit (range 3) 16 | -11/Scrapyard | Entered Materials 130 | -10/Materials | Discovered new exit (range 10) 209 | -10/Materials | Discovered new exit (range 16) 323 | -10/Materials | Build established: Mutant 515 | -10/Materials | Discovered new exit (range 8) 555 | -10/Materials | Entered Mines 566 | -10/Mines | Learned location of Storage (-9) 568 | -10/Mines | Assembled infested the area 573 | -10/Mines | Assisted by a Guerilla fighting off Assembled 604 | -10/Mines | YI-UF0 nonchalantly dropped a Grenade Launcher on the ground 646 | -10/Mines | Core integrity fell below 50% 648 | -10/Mines | Destroyed YI-UF0 846 | -10/Mines | Discovered new exit (range 10) 893 | -10/Mines | Entered Materials 893 | -9/Materials | Evolved 2 slots: Propulsion x1, Utility x1 1183 | -9/Materials | Build established: Scavenger-Mutant 1291 | -9/Materials | Discovered new exit (range 10) 1310 | -9/Materials | Entered Mines 1586 | -9/Mines | Discovered new exit (range 11) 1593 | -9/Mines | Learned location of Zion (-7) 1664 | -9/Mines | Deemed a non-threat by the Exiles lab entrance 1665 | -9/Mines | Discovered new exit (range 5) 1670 | -9/Mines | Entered Exiles 1686 | -9/Exiles | Discovered new exit (range 16) 1700 | -9/Exiles | Met 8R-AWN 1718 | -9/Exiles | Met EX-HEX 1764 | -9/Exiles | Met EX-DEC 1918 | -9/Exiles | Met EX-BIN 1937 | -9/Exiles | Aligned with FarCom system 1938 | -9/Exiles | Given EX-Vault access code 1989 | -9/Exiles | Opened EX-Vault 1998 | -9/Exiles | Found PSU Rigger 2027 | -9/Exiles | Warned to stay clear of 0b10 Research branches 2039 | -9/Exiles | Exiles lab attacked by MAIN.C 2104 | -9/Exiles | Discovered new exit (range 11) 2116 | -9/Exiles | Left Exiles lab with PSU Rigger 2116 | -9/Exiles | Entered Mines 2157 | -8/Mines | Discovered new exit (range 8) 2167 | -8/Mines | Entered Materials 2167 | -8/Materials | Evolved 2 slots: Utility x1, Weapon x1 2410 | -8/Materials | Build established: Scavenger-Skirmisher 3069 | -8/Materials | Discovered new exit (range 5) 3104 | -8/Materials | Entered Factory 3104 | -7/Factory | Evolved 2 slots: Propulsion x1, Utility x1 3124 | -7/Factory | Identified exit to DSF 3124 | -7/Factory | Entered DSF 3181 | -7/DSF | Additional patrols routed to DSF 3186 | -7/DSF | Discovered new exit (range 11) 3205 | -7/DSF | Entered Garrison 3211 | -7/Garrison | Installed Relay Interface Framework 3233 | -7/Garrison | Self-destructed Last Messages --------------- 03139_ Slug penetrates X-57 Shotgunner. 03145_ X-57 Shotgunner destroyed. 03146_ Acquired 48 matter. 03169_ ALERT: Suspicious intruders detected, dispatching Specialist reinforcements to area. 03181_ Hostiles detected in DSF, routing additional patrols. 03181_ Hpw. Tractor Beam destroyed. 03181_ Critical hit (Blast). 03182_ Dropped Imp. Treads. 03186_ Slammed into X-67 Chaingunner. 03186_ EXIT=FOUND 03187_ Acquired 7 matter. 03198_ Imp. Carbon-fiber Leg destroyed. 03203_ Cooling System destroyed. 03203_ Matter Repository disabled. LOCATION=UNKNOWN GOAL=ESCAPE 03205_ Receiving FarCom transmissions... 03210_ Initiating installation procedure... 03211_ Relay Interface Framework installed. Map ----- +----------------------------------------------------+ | ??????????????????????????????????????????????? | | ??????????????????????????????????????????????? | | ??????????????????????????????????????????????? | | ??????????????????????????????????????????????? | | ??????????????????????????????????????????????? | | ??????????????????????????????????????????????? | | ??????????????????????????????????????????????? | | ??????????????????????????????????????????????? | | ??????????????????????????????????????????????? | | ??????????????????????????????????????????????? | | ??????????????????????????????????????????????? | | ??????????????????????????????????????????????? | | ??????????????????????????????????????????????? | | ??????????????????????????????????????????????? | | ??????????????????????????????????????????????? | | ??????????????????????????????????????????????? | | ??????????????????????????????????????????????? | | ??????????????????????????????????????????????? | | ??????????????????????????????????????????????? | | ??????????????????????????????????????????????? | | ??????????????????????????????????????????????? | | ??????????????????????????????????????????????? | | ??????????????????????????????????????????????? | | ??????????#############################???????? | | ??????????# ????? | | ??????????# @ ????? | | ??????????# ????? | | ??????????# ############# ##### ###???????? | | ??????????# #????????????? #????????????????? | | ??????????## ##??????????Y???#???????s????????? | | ??????????#" "#??????????????????????s????????? | | ??????????#" "#??????????????????????s????????? | | ??????????#" "#???????????????????????????????? | | ??????????#"""#???????????????????????????????? | | ??????????#####???????????????????????????????? | | ??????????????????????????????????????????????? | | ??????????????????????????????????????????????? | | ??????????????????????????????????h???????????? | | ??????????????????????????????????????????????? | | ??????????????????????????????????????????????? | | ??????????????????????????????????????????????? | | ??????????????????????????????????????????????? | | ??????????????????????????????????????????????? | | ??????????????????????????????????????????????? | | ??????????????????????????????????????????????? | | ??????????????????????????????????????????????? | | ??????????????????????????????????????????????? | | ??????????????????????????????????????????????? | | ??????????????????????????????????????????????? | | ??????????????????????????????????????????????? | +----------------------------------------------------+ Best States ------------- Heat Dissipation 67 Energy Generation 14 Energy Capacity 280 Matter Stores 300 Matter Capacity 300 Sight Range 18 Robot Scan Range 14 Terrain Scan Density 10 Armor Coverage 150 Evasion (%) 55 Targeting Accuracy 8 Recoil Reduction 1 Item Schematics ----------------- None Robot Schematics ------------------ None Fabricated ------------ Nothing Alien Tech Used ----------------- None Achievements -------------- None Challenges ------------ None Game ------ Seed HugePrecisionProtomatter Manual? 0 Play Time 00:31:19 Cumulative 245.9 hours Start 2022.05.07 @ 22:56:17 End 2022.05.31 @ 17:27:41 Sessions 3 Manual Loads 0 Difficulty Rogue Special Mode None Game No. 556 Rogue 556 Adventurer 0 Explorer 0 Win Type - Total 5 Types 4/0/0/1/0/0/0/0/0 Lore% 58 Gallery% 61 Achievement% 56 Wizard Run 0 Options --------- ASCII 0 Keyboard 0 Movement Numpad Keybinds 0 Fullscreen 1 Font 16/SmallcapsGlow Map View 75x55 Tactical HUD 1 Map Filters NONE Filters NONE Steam 1 RUN: 1dd6fa72-27fe-4011-81cd-df700306eac3